[Event "44th Chess Olympiad Open 2022"]
[Site "Chennai"]
[Date "2022.08.01"]
[Round "4.25"]
[White "Baenziger, Fabian"]
[Black "Asllani, Muhamet"]
[Result "1-0"]
[WhiteElo "2451"]
[BlackElo "2235"]
[Annotator "TA"]
[PlyCount "91"]
[EventDate "2022.??.??"]
[TimeControl "60"]

{[%evp 16,91,43,14,41,22,45,36,37,44,58,52,66,37,60,56,75,80,76,70,76,41,45,40,
49,41,52,43,115,122,123,71,94,67,95,91,78,67,67,57,96,65,105,58,129,58,58,51,
95,66,69,51,114,58,75,55,114,64,65,45,89,96,94,64,99,102,107,86,106,72,144,132,
787,788,1473,1437,1980,1892]} 1. d4 {[%emt 0:00:05]} Nf6 {[%emt 0:00:19]} 2. c4
{[%emt 0:00:25]} e6 {[%emt 0:00:42]} 3. Nf3 {[%emt 0:01:02]} d5 {[%emt 0:00:11]
} 4. g3 {[%emt 0:00:26]} Be7 {[%emt 0:01:24]} 5. Bg2 {[%emt 0:00:08]} O-O {
[%emt 0:00:14]} 6. O-O {[%emt 0:00:20]} c6 {[%emt 0:00:47]} 7. Qc2 {[%emt 0:00:
00]} Nbd7 {[%emt 0:06:29] 7...b6 injects fresh life into this line.} 8. Rd1 {
[%emt 0:00:43]} Ne4 {[%emt 0:10:17]} 9. b3 {[%emt 0:11:25]} b6 {[%emt 0:06:47]
E08: Closed Catalan: Main Line: 7 Qc2.} 10. Nbd2 {[%emt 0:01:35]} Nxd2 {
[%emt 0:02:56]} 11. Nxd2 {[%emt 0:13:19]} Bb7 {[%emt 0:02:11] White is
slightly better.} 12. e4 {[%emt 0:00:10] [#]} dxe4 $146 {[%emt 0:00:10]} ({
Predecessor:} 12... Rc8 13. Bb2 Re8 14. Rac1 Bf8 15. Qb1 Qg5 16. Nf3 Qe7 17.
Re1 Qd8 18. Rcd1 Bb4 {1-0 (52) Sundararajan,K (2487)-Luna Cortes,L (2219)
Montcada 2009}) 13. Nxe4 {[%emt 0:00:45]} Nf6 {[%emt 0:00:07]} 14. Ng5 {
[%emt 0:09:15]} Qc7 {[%emt 0:10:25]} 15. Bf4 {[%emt 0:11:41]} Bd6 {[%emt 0:00:
00]} 16. Bxd6 {[%emt 0:00:05]} Qxd6 {[%emt 0:00:08]} 17. c5 {[%emt 0:03:03]}
Qc7 {[%emt 0:01:20]} 18. Rac1 {[%emt 0:01:20]} b5 {[%emt 0:02:24]} 19. Rd2 {
[%emt 0:10:05]} Rfd8 {[%emt 0:01:48]} 20. h4 {[%emt 0:02:49]} Qa5 {[%emt 0:00:
00]} 21. Nf3 {[%emt 0:06:36]} Qa3 {[%emt 0:09:06]} (21... Qc7 $14) 22. Ne5 $16
{[%emt 0:00:20]} Rac8 {[%emt 0:02:11]} 23. Re1 {[%emt 0:02:58]} (23. Rcd1 $142)
23... Qb4 {[%emt 0:07:03]} 24. Qb2 {[%emt 0:01:36][%cal Ya2a4]} Nd7 {[%emt 0:
00:00]} 25. Nd3 {[%emt 0:02:10] 0x0.0019ebf61f69dp-1022s more active pieces.}
Qa5 {[%emt 0:00:08]} 26. Red1 {[%emt 0:07:36]} Nf6 {[%emt 0:05:21]} 27. Ne5 {
[%emt 0:00:00]} Nd7 {[%emt 0:00:53]} 28. Qc2 {[%emt 0:00:00]} Nf6 {[%emt 0:00:
00]} 29. Bf3 {[%emt 0:00:07]} (29. g4 $16) 29... Qb4 {[%emt 0:02:46]} ({
Better is} 29... Qc7 $14) 30. Nd3 {[%emt 0:02:47]} (30. g4 $1 $16 {[%cal Rg4g5]
}) 30... Qa5 $14 {[%emt 0:00:14]} (30... Qxd4 $2 31. Ne5 $1 Qxd2 32. Rxd2 $18)
31. Qb2 {[%emt 0:00:09]} Nd7 {[%emt 0:01:38]} 32. Kg2 {[%emt 0:00:00]} Nf6 {
[%emt 0:00:30]} 33. Ne5 {[%emt 0:00:30][%cal Ya2a4]} Nd7 {[%emt 0:00:00]} (
33... Nd5 $14) 34. Qc2 {[%emt 0:01:52]} (34. Bh5 $16 g6 35. Bf3) 34... Nf6 {
[%emt 0:00:23]} 35. Kh2 {[%emt 0:00:21]} Qb4 {[%emt 0:00:29]} (35... Nd5 $14)
36. Nd3 {[%emt 0:00:13]} (36. g4 $16) 36... Qa5 {[%emt 0:00:07]} (36... Qxd4 $2
{[#]} 37. Ne5 $1 Qxd2 38. Rxd2 $18) 37. Qb2 {[%emt 0:00:00]} (37. b4 $5 {
[%cal Rb4a5]} Qc7 38. Ne5 $11) 37... Nd7 {[%emt 0:00:14]} 38. Ne5 {[%emt 0:03:
52]} Nf6 {[%emt 0:13:52]} 39. Rd3 {[%emt 0:00:13]} Qb4 {[%emt 0:01:07]} 40. Qe2
{[%emt 0:00:50]} Qa5 {[%emt 0:02:19]} 41. Bg2 {[%emt 0:00:00]} Qc7 {[%emt 0:31:
16]} 42. Kg1 {[%emt 0:01:37]} Qa5 {[%emt 0:00:14]} ({Black should try} 42...
Nd5) 43. Re1 {[%emt 0:00:59]} Nd7 $2 {[%emt 0:00:46] [#]} (43... Qc7 $16) 44.
Nxf7 $1 $18 {[%emt 0:01:17] White is clearly winning.} Nxc5 {[%emt 0:02:02]} (
44... Re8 45. Nd6) 45. Nxd8 {[%emt 0:01:06]} Rxd8 {[%emt 0:00:18]} 46. dxc5 {
[%emt 0:00:16] Weighted Error Value: White=0.21 (precise) /Black=0.25 (precise)
} 1-0

[Event "44th Chess Olympiad Open 2022"]
[Site "Chennai"]
[Date "2022.08.01"]
[Round "4.25"]
[White "Makolli, Perparim"]
[Black "Kurmann, Oliver"]
[Result "0-1"]
[WhiteElo "2247"]
[BlackElo "2463"]
[Annotator "TA"]
[PlyCount "86"]
[EventDate "2022.??.??"]
[TimeControl "60"]

{[%evp 24,86,37,12,10,0,6,14,10,0,0,0,10,-33,-31,-39,-23,-52,-52,-56,-57,-51,
-41,-72,-57,-83,-51,-65,-53,-71,-83,-103,-99,-88,-91,-119,-99,-129,-119,-122,
-108,-112,-121,-197,-181,-284,-269,-261,-208,-181,-153,-176,-162,-147,-122,
-382,-247,-469,-452,-775,-731,-843,-826,-907,-745]} 1. e4 {[%emt 0:00:17]} c5 {
[%emt 0:00:07]} 2. Nf3 {[%emt 0:00:20][%cal Yg1f3,Yf3d4,Yd4b5,Yb5a3,Ya3c2]} Nc6
{[%emt 0:00:07]} 3. d4 {[%emt 0:02:04]} cxd4 {[%emt 0:00:08]} 4. Nxd4 {[%emt 0:
00:05]} Nf6 {[%emt 0:00:18]} 5. Nc3 {[%emt 0:00:07]} e5 {[%emt 0:00:00]} 6.
Ndb5 {[%emt 0:01:31]} d6 {[%emt 0:00:10]} 7. Bg5 {[%emt 0:00:18]} a6 {[%emt 0:
00:09]} 8. Na3 {[%emt 0:00:06]} b5 {[%emt 0:00:14]} 9. Nd5 {[%emt 0:00:00]} Be7
{[%emt 0:00:12]} 10. Bxf6 {[%emt 0:00:19]} Bxf6 {[%emt 0:00:09]} 11. c3 {
[%emt 0:02:20]} Rb8 {[%emt 0:00:13]} 12. Nc2 {[%emt 0:00:25]} Bg5 {[%emt 0:00:
19]} 13. g3 {[%emt 0:05:03]} O-O {[%emt 0:00:30] B33: Sicilian: Pelikan and
Sveshnikov Variations.} 14. h4 {[%emt 0:00:32]} Bh6 {[%emt 0:00:09]} 15. Bh3 {
[%emt 0:01:30]} Be6 {[%emt 0:01:45] The position is equal.} 16. Ncb4 {[%emt 0:
13:37] 16.Qd3 is setting a new trend.} Nxb4 {[%emt 0:05:15]} 17. Nxb4 {[%emt 0:
01:06] Threatens to win with Nc6.} Qd7 {[%emt 0:05:43] Inhibits Nc6.} 18. Bg2 {
[%emt 0:03:07]} a5 {[%emt 0:00:50]} 19. Nd5 {[%emt 0:00:11]} Qb7 {[%emt 0:08:
24]} 20. O-O {[%emt 0:10:12]} Bxd5 {[%emt 0:00:06]} 21. Qxd5 {[%emt 0:06:19]}
Qxd5 {[%emt 0:00:02]} 22. exd5 {[%emt 0:00:10]} f5 {[%emt 0:00:00]} 23. Rfd1 {
[%emt 0:04:00]} g6 {[%emt 0:04:08]} 24. Bf1 {[%emt 0:04:15]} Rfc8 {[%emt 0:05:
25] [#]} 25. Be2 $146 {[%emt 0:07:21]} ({Predecessor:} 25. h5 Kf7 26. hxg6+
hxg6 27. Rdb1 e4 28. a4 b4 29. Ba6 Rc7 30. c4 Bg7 31. Ra2 {0-1 (43) Nikitenko,
M (2418)-Aravindh,C (2505) Ulaanbaatar 2015}) 25... Rc7 {[%emt 0:16:43]} 26.
Kg2 {[%emt 0:03:21]} b4 {[%emt 0:02:16]} 27. c4 {[%emt 0:00:00]} e4 {[%emt 0:
02:09]} 28. b3 {[%emt 0:07:49]} a4 {[%emt 0:04:40]} 29. Rf1 {[%emt 0:06:30]}
Bg7 {[%emt 0:02:01]} 30. Rac1 {[%emt 0:02:43] [#]} axb3 $1 {[%emt 0:06:49]} 31.
axb3 {[%emt 0:00:06]} Ra8 {[%emt 0:00:11]} 32. Rc2 {[%emt 0:00:17] Inhibits
Ra2.} Bd4 {[%emt 0:04:25]} 33. Rd1 {[%emt 0:07:51] [#]} (33. Bd1 $17) 33... Bc5
$1 $19 {[%emt 0:02:18]} 34. Rdd2 {[%emt 0:01:26]} (34. f3 $142) 34... Rca7 {
[%emt 0:00:10]} 35. Rb2 {[%emt 0:00:19]} Kg7 {[%emt 0:00:00]} 36. Bd1 {[%emt 0:
00:42]} Kf6 {[%emt 0:02:50]} 37. Bc2 {[%emt 0:02:17]} Ra1 {[%emt 0:05:01]} 38.
Bb1 {[%emt 0:01:31]} R8a3 {[%emt 0:00:24] Black is more active.} 39. Ba2 $2 {
[%emt 0:03:40] This costs White the game.} (39. Rd1 $17) 39... Ke5 {[%emt 0:00:
21] White must now prevent ...Bd4.} 40. Re2 $2 {[%emt 0:00:50]} (40. f4+ Kf6
41. Bb1) 40... Bd4 {[%emt 0:09:33] Black is clearly winning.} 41. Rbc2 {
[%emt 0:08:23]} (41. f4+ $142 Kf6 42. Rbd2) 41... Bc3 {[%emt 0:00:47]} 42. Kh2
{[%emt 0:02:45]} Kd4 {[%emt 0:01:02]} 43. Kg2 {[%emt 0:00:06]} h6 {[%emt 0:00:
19] Weighted Error Value: White=0.52/Black=0.09 (flawless)} 0-1

[Event "44th Chess Olympiad Open 2022"]
[Site "Chennai"]
[Date "2022.08.01"]
[Round "4.26"]
[White "Cordova, Emilio"]
[Black "Rohl Montes, Juan Armando"]
[Result "1-0"]
[WhiteElo "2549"]
[BlackElo "2382"]
[Annotator "TA"]
[PlyCount "53"]
[EventDate "2022.??.??"]
[TimeControl "60"]

{[%evp 13,53,7,0,3,27,21,37,29,44,14,27,17,27,14,14,17,23,24,12,8,11,0,35,10,
10,0,0,8,57,46,48,56,320,312,310,304,291,281,398,412,398,373]} 1. Nf3 {[%emt 0:
00:00]} Nf6 {[%emt 0:00:26]} 2. c4 {[%emt 0:01:32]} g6 {[%emt 0:01:48]} 3. g3 {
[%emt 0:00:16]} Bg7 {[%emt 0:01:27]} 4. Bg2 {[%emt 0:01:07]} O-O {[%emt 0:00:
00]} 5. O-O {[%emt 0:03:06]} c6 {[%emt 0:03:35]} 6. d4 {[%emt 0:00:08]} d5 {
[%emt 0:01:33]} 7. a4 {[%emt 0:20:48]} dxc4 {[%emt 0:21:21][%cal Yc6c5]} 8. Na3
{[%emt 0:05:49] D73: Fianchetto Grünfeld: 5 Nf3 .} Na6 {[%emt 0:08:30]} 9.
Nxc4 {[%emt 0:00:00]} Be6 {[%emt 0:03:49]} 10. b3 {[%emt 0:05:07] White is
slightly better.} Bd5 {[%emt 0:22:31]} 11. e3 {[%emt 0:06:19]} c5 {[%emt 0:00:
00]} 12. Ba3 {[%emt 0:07:37]} Rc8 {[%emt 0:00:00]} 13. Rc1 {[%emt 0:02:10] [#]}
Rc7 $146 {[%emt 0:09:49]} ({Predecessor:} 13... Re8 14. Qe2 cxd4 15. Nxd4 Bxg2
16. Kxg2 Qd5+ 17. Kg1 Nc5 18. Rfd1 b6 19. a5 Qb7 20. axb6 axb6 {0-1 (32)
Krasenkow,M (2545)-Shirov,A (2500) Paris 1990}) 14. Qe2 {[%emt 0:00:00]} Qc8 {
[%emt 0:29:39]} 15. Rfd1 {[%emt 0:05:50]} Rd8 {[%emt 0:00:00]} 16. a5 {[%emt 0:
00:00]} h6 {[%emt 0:01:52]} 17. h3 {[%emt 0:19:28]} Kf8 {[%emt 0:00:00]} 18.
Ncd2 {[%emt 0:05:48]} (18. Bb2 {is more complex.} Kg8 19. Nfe5 cxd4 20. Bxd4
Bxg2 21. Kxg2 Ne4 22. h4) 18... cxd4 {[%emt 0:00:00]} 19. exd4 {[%emt 0:01:51]
[%cal Ya3e7] Hoping for Bxe7+!} Kg8 {[%emt 0:00:00]} 20. Qxe7 {[%emt 0:02:48]}
Rxe7 {[%emt 0:00:00]} (20... Be6 $11 21. Rxc7 Nxc7) 21. Rxc8 $14 {[%emt 0:00:
00]} Rxc8 {[%emt 0:00:00]} 22. Bxe7 {[%emt 0:00:05]} Rc2 $2 {[%emt 0:00:00] [#]
This move loses the game for Black.} ({Black should try} 22... Rc7 $14 23. Ba3
Rc2) 23. Ne1 $18 {[%emt 0:01:18][%cal Yf3e1,Ye1c2,Yc2e3]} Bxg2 {[%emt 0:00:00]}
24. Nxc2 {[%emt 0:00:21]} Bxh3 {[%emt 0:00:00]} 25. Ne3 {[%emt 0:00:43]
Inhibits Nd5.} Nc7 {[%emt 0:00:00]} (25... Bd7 $142 26. d5 Ne8) 26. Bxf6 {
[%emt 0:01:09]} Bxf6 {[%emt 0:00:00]} 27. Ne4 {[%emt 0:00:11] Weighted Error
Value: White=0.04 (flawless) /Black=0.42} 1-0

[Event "44th Chess Olympiad Open 2022"]
[Site "Chennai"]
[Date "2022.08.01"]
[Round "4.26"]
[White "Escalante Ramirez, Brian Sebasti"]
[Black "Castro Torres, Jose Luis"]
[Result "1/2-1/2"]
[WhiteElo "2496"]
[BlackElo "2326"]
[Annotator "TA"]
[PlyCount "94"]
[EventDate "2022.??.??"]
[TimeControl "60"]

{[%evp 16,94,12,18,18,20,39,34,49,49,51,35,87,20,24,39,54,54,56,57,24,47,88,49,
73,89,83,58,76,62,80,38,21,28,53,37,134,140,201,201,201,202,192,196,190,174,
206,206,158,125,126,124,252,252,245,185,209,185,162,196,139,67,68,0,0,0,0,0,0,
0,0,0,0,0,0,0,0,0,0,0,0]} 1. e4 {[%emt 0:00:02][%cal Ye2e4,Ye4e5]} c5 {[%emt 0:
00:05]} 2. Nf3 {[%emt 0:00:07]} Nc6 {[%emt 0:00:12]} 3. c3 {[%emt 0:00:00]} Nf6
{[%emt 0:00:05]} 4. e5 {[%emt 0:00:05]} Nd5 {[%emt 0:00:05]} 5. Bc4 {[%emt 0:
00:04]} Nb6 {[%emt 0:01:06]} 6. Bb3 {[%emt 0:00:06]} d5 {[%emt 0:00:00]} 7.
exd6 {[%emt 0:00:06]} c4 {[%emt 0:09:08]} 8. Bc2 {[%emt 0:00:18]} Qxd6 {
[%emt 0:00:07]} 9. O-O {[%emt 0:00:13][%cal Yh1f1,Yf1e1,Ye1e5]} Bg4 {[%emt 0:
00:47] B22: Sicilian: 2 c3.} 10. Re1 $1 {[%emt 0:00:29] Prevents Ne5.10.Re1
scores better than 10.h3.} e6 {[%emt 0:22:31][%cal Yc6e5]} 11. b3 {[%emt 0:00:
11]} Ne5 {[%emt 0:05:21] White is slightly better.} 12. Rxe5 {[%emt 0:00:20]}
Bxf3 {[%emt 0:02:49]} 13. Qe1 {[%emt 0:00:02]} Bc6 {[%emt 0:00:00]} (13... Bd5
$1 $14) 14. Ba3 {[%emt 0:21:10] [#]} ({Better is} 14. Na3 $1 $16) 14... Qc7
$146 {[%emt 0:00:08]} ({Predecessor:} 14... Qd7 15. Bxf8 Rxf8 16. Na3 O-O-O 17.
Rd1 cxb3 18. axb3 Kb8 19. d4 Nd5 20. f3 Qe7 {½-½ (49) Barbosa,E (2370)
-Shumyatsky,V (1813) Catanduva 2010}) 15. Bxf8 {[%emt 0:00:35]} Rxf8 {[%emt 0:
00:56]} 16. Na3 {[%emt 0:00:35]} O-O-O {[%emt 0:01:32]} 17. Nb5 {[%emt 0:14:35]
Inhibits Qd6.} ({Reject} 17. Nxc4 Nxc4 18. bxc4 Rxd2 19. Qxd2 Qxe5 $11) 17...
Bxb5 {[%emt 0:18:06]} 18. Rxb5 {[%emt 0:00:06]} Rd5 {[%emt 0:00:00]} 19. bxc4 {
[%emt 0:07:13]} Qxc4 {[%emt 0:00:02]} 20. Rb4 {[%emt 0:07:22]} Qc7 {[%emt 0:02:
16]} 21. Be4 {[%emt 0:00:56]} Rc5 {[%emt 0:03:24]} 22. a4 {[%emt 0:02:45]} Rd8
{[%emt 0:11:51][%cal Yf8d8,Yd8d7,Yd7b7,Yb7b4,Yb4c4]} 23. a5 {[%emt 0:15:29]}
Nd5 {[%emt 0:00:10]} 24. Rb2 $36 {[%emt 0:00:16] White is pushing.} Rd7 {
[%emt 0:06:38]} 25. Rab1 {[%emt 0:03:29]} (25. Bxh7 g6 26. a6 b6 $17) 25...
Rxa5 {[%emt 0:01:26]} (25... Qd6 $14) 26. Rxb7 $16 {[%emt 0:02:09] Deflection}
Qxb7 {[%emt 0:02:06]} (26... Qd6 $16 {keeps fighting.} 27. R7b3 Nb6) 27. Rxb7
$18 {[%emt 0:00:08]} Rxb7 {[%emt 0:00:00]} 28. c4 $1 {[%emt 0:00:05]} (28. Bxh7
g6 $14) 28... Rb4 {[%emt 0:00:01]} 29. Bxd5 {[%emt 0:01:28]} ({Worse is} 29.
cxd5 Rxe4 $1 30. Qc1+ Kd8 31. dxe6 Rae5 $11) 29... exd5 {[%emt 0:00:01]
Endgame KQ-KRR} 30. Qe8+ {[%emt 0:01:48]} Kc7 {[%emt 0:00:57] ( -> ...Rb1+)}
31. Qxf7+ {[%emt 0:01:00]} Kb6 {[%emt 0:00:47][%cal Rb4b1]} 32. g4 {[%emt 0:06:
00][%cal Yg2g4,Yg4g5]} Rxc4 {[%emt 0:00:25]} 33. Qxg7 {[%emt 0:00:05]} Rc7 {
[%emt 0:03:05]} (33... Ra2 $16 34. g5 Rc7) 34. Qd4+ {[%emt 0:00:03]} Rac5 {
[%emt 0:00:34]} 35. h4 {[%emt 0:01:36] Strongly threatening g5.} a5 {[%emt 0:
00:04] [#]} 36. g5 $1 {[%emt 0:02:07]} Ra7 {[%emt 0:00:02]} 37. Qf6+ {[%emt 0:
06:54]} Kb5 {[%emt 0:00:00] [#]} 38. Qd6 {[%emt 0:01:21]} (38. Qb2+ $1 $16 Kc6
39. Qb8) 38... a4 $1 $14 {[%emt 0:02:33]} 39. d4 {[%emt 0:04:27]} (39. Qb8+ $14
Ka6 40. Qb4) 39... Rcc7 {[%emt 0:00:35] The position is equal.} 40. Qxd5+ {
[%emt 0:01:43]} Kb4 {[%emt 0:00:01]} 41. Qd6+ {[%emt 0:09:36]} Kb3 {[%emt 0:01:
03]} 42. Qb6+ {[%emt 0:02:59]} Kc2 {[%emt 0:04:23]} 43. d5 {[%emt 0:00:27]
[%cal Yd4d5,Yd5d6]} a3 {[%emt 0:11:47] ...a2 is the strong threat.} 44. d6 {
[%emt 0:00:00]} Rcb7 {[%emt 0:00:40]} 45. Qc5+ {[%emt 0:00:24]} Kb1 {[%emt 0:
01:43]} 46. Qf5+ {[%emt 0:00:27]} Ka1 {[%emt 0:01:20]} 47. Qe5+ {[%emt 0:05:10]
} Kb1 {[%emt 0:06:11] Black escapes into a draw. Weighted Error Value: White=0.
13 (very precise) /Black=0.18 (very precise)} 1/2-1/2

[Event "44th Chess Olympiad Open 2022"]
[Site "Chennai"]
[Date "2022.08.01"]
[Round "4.26"]
[White "Palomo, Franklin Annervys"]
[Black "Cruz, Cristhian"]
[Result "1/2-1/2"]
[WhiteElo "2324"]
[BlackElo "2579"]
[Annotator "TA"]
[PlyCount "64"]
[EventDate "2022.??.??"]
[TimeControl "60"]

{[%evp 17,64,24,22,15,33,18,20,20,30,23,23,27,26,25,27,23,27,21,28,29,30,34,25,
18,22,10,20,8,8,14,12,6,7,5,21,0,15,9,9,6,14,10,8,0,12,0,16,0,15]} 1. d4 {
[%emt 0:00:05]} Nf6 {[%emt 0:00:27]} 2. Nf3 {[%emt 0:00:33]} e6 {[%emt 0:00:45]
} 3. c4 {[%emt 0:00:32]} Bb4+ {[%emt 0:02:29]} 4. Bd2 {[%emt 0:00:29]} c5 {
[%emt 0:00:11]} 5. Bxb4 {[%emt 0:02:22]} cxb4 {[%emt 0:00:05]} 6. Nbd2 {
[%emt 0:00:37]} O-O {[%emt 0:01:40]} 7. e3 {[%emt 0:01:02]} b6 {[%emt 0:07:34]}
8. Bd3 {[%emt 0:03:26]} Bb7 {[%emt 0:00:35]} 9. O-O {[%emt 0:01:05]} d6 {
[%emt 0:01:32] [#]} 10. Qb1 $146 {[%emt 0:08:01] E11: Bogo-Indian.} ({
Predecessor:} 10. Re1 Nc6 11. Qc2 Rc8 12. Rac1 e5 13. Ne4 g6 14. Qa4 Na5 15.
Nxf6+ Qxf6 16. d5 e4 17. Bxe4 Qxb2 {0-1 (37) Sarana,A (2656)-Pranav,V (2486)
Chess.com INT 2021}) 10... Nbd7 {[%emt 0:04:55]} 11. a3 {[%emt 0:08:13]} bxa3 {
[%emt 0:05:21]} 12. Rxa3 {[%emt 0:00:39]} Qc7 {[%emt 0:01:32]} 13. h3 {[%emt 0:
00:00]} h6 {[%emt 0:03:32]} 14. Rc1 {[%emt 0:00:49]} Rfe8 {[%emt 0:03:59]} 15.
b4 {[%emt 0:08:08]} a5 {[%emt 0:12:01]} 16. Bf1 {[%emt 0:20:19]} axb4 {[%emt 0:
00:00]} 17. Qxb4 {[%emt 0:00:33]} Rxa3 {[%emt 0:02:01]} 18. Qxa3 {[%emt 0:00:
00]} Ra8 {[%emt 0:00:28]} 19. Qb2 {[%emt 0:00:48]} Qb8 {[%emt 0:04:46]} 20. Ra1
{[%emt 0:02:43]} Kf8 {[%emt 0:03:26] The position is equal.} 21. Bd3 {[%emt 0:
00:00]} Ke7 {[%emt 0:03:43]} 22. Kf1 {[%emt 0:01:15][%cal Yg1f1,Yf1e2,Ye2d1,
Yd1c2,Yc2c3]} Rxa1+ {[%emt 0:04:15]} 23. Qxa1 {[%emt 0:00:07]} Qa8 {[%emt 0:00:
18]} 24. Qxa8 {[%emt 0:01:34]} Bxa8 {[%emt 0:00:03]} 25. Ke2 {[%emt 0:00:18]}
Bb7 {[%emt 0:01:45]} 26. Kd1 {[%emt 0:03:00]} Kd8 {[%emt 0:00:00]} 27. Kc2 {
[%emt 0:00:42]} Kc7 {[%emt 0:00:34]} 28. Kc3 {[%emt 0:00:54]} Ba8 {[%emt 0:06:
47]} 29. Bc2 {[%emt 0:01:53]} Bc6 {[%emt 0:00:57]} 30. Bd3 {[%emt 0:02:01]} Bb7
{[%emt 0:04:28]} 31. Bc2 {[%emt 0:01:00]} Bc6 {[%emt 0:00:00]} 32. Bd3 {
[%emt 0:00:43]} Bb7 {[%emt 0:04:19] Weighted Error Value: White=0.07 (flawless)
/Black=0.05 (flawless)} 1/2-1/2

[Event "44th Chess Olympiad Open 2022"]
[Site "Chennai"]
[Date "2022.08.01"]
[Round "4.26"]
[White "Escalona Landi, Samid Eduardo"]
[Black "Terry, Renato"]
[Result "1/2-1/2"]
[WhiteElo "2191"]
[BlackElo "2502"]
[Annotator "TA"]
[PlyCount "77"]
[EventDate "2022.??.??"]
[TimeControl "60"]

{[%evp 23,77,41,42,40,39,38,45,0,5,0,10,0,6,0,19,-22,-17,-26,-32,-29,-27,-29,0,
0,14,9,24,0,0,0,0,0,0,0,0,-68,0,0,0,0,10,9,13,9,8,16,16,0,0,0,124,135,122,115,
133,0]} 1. Nf3 {[%emt 0:00:34]} g6 {[%emt 0:02:24]} 2. d4 {[%emt 0:01:08]} Bg7
{[%emt 0:00:56]} 3. e4 {[%emt 0:01:12]} d6 {[%emt 0:00:05]} 4. Be2 {[%emt 0:00:
00]} Nf6 {[%emt 0:00:46]} 5. Nc3 {[%emt 0:00:05]} c6 {[%emt 0:04:13]} 6. a4 {
[%emt 0:01:24]} O-O {[%emt 0:06:50]} 7. a5 {[%emt 0:00:24]} Nbd7 {[%emt 0:00:
00]} 8. O-O {[%emt 0:00:20]} Qc7 {[%emt 0:00:33]} 9. h3 {[%emt 0:00:31]} e5 {
[%emt 0:07:56]} 10. dxe5 {[%emt 0:00:26]} dxe5 {[%emt 0:00:41]} 11. Be3 {
[%emt 0:00:07]} Rd8 {[%emt 0:00:41]} 12. Qb1 {[%emt 0:09:45]} Nf8 {[%emt 0:00:
00][%cal Yd7f8,Yf8e6,Ye6d4]} 13. Rd1 {[%emt 0:02:07] B08: Pirc Defence:
Classical System.} Rxd1+ {[%emt 0:04:44]} 14. Qxd1 {[%emt 0:00:06]} Ne6 {
[%emt 0:04:45]} 15. b4 {[%emt 0:08:07][%cal Yb2b4,Yb4b5,Yb5b6] White is
slightly better.} Bf8 {[%emt 0:05:16] [#]} 16. Ra4 $146 {[%emt 0:00:00]} ({
Predecessor:} 16. Qb1 Nf4 17. Bc4 Be6 18. Qb3 h6 19. Rd1 b5 20. Bxe6 Nxe6 21.
Ne1 g5 22. Nd3 {1-0 (73) Maj,P (2001)-Raczynski,K (1835) Poznan 2014}) 16...
Bd7 {[%emt 0:03:22]} 17. Qb1 {[%emt 0:10:51]} c5 {[%emt 0:05:15]} 18. b5 {
[%emt 0:00:57]} Nd4 {[%emt 0:00:12]} 19. Nd2 {[%emt 0:04:47]} (19. a6 $5 {
[%cal Ra6b7]}) 19... a6 {[%emt 0:09:45]} 20. b6 {[%emt 0:10:46]} Nxe2+ {
[%emt 0:05:19]} 21. Nxe2 {[%emt 0:00:07]} Qc6 {[%emt 0:00:02]} 22. Nc3 {
[%emt 0:00:14]} Be6 {[%emt 0:00:37]} 23. Nf3 {[%emt 0:04:56]} Bd6 {[%emt 0:00:
00]} 24. Ng5 {[%emt 0:06:02]} Bd7 {[%emt 0:00:44]} 25. Nf3 {[%emt 0:07:58]} c4
{[%emt 0:04:20]} 26. Qd1 {[%emt 0:02:03]} Nxe4 {[%emt 0:02:39]} 27. Nxe4 {
[%emt 0:00:56]} Qxe4 {[%emt 0:00:01]} 28. Qxd6 {[%emt 0:12:27]} Bxa4 {[%emt 0:
00:00]} 29. Bh6 {[%emt 0:00:13]} (29. Nxe5 $11 h5 30. Bd4) 29... Qf5 {[%emt 0:
00:00]} (29... Qxc2 {leads to mate.} 30. Qf6) (29... g5 $1 $15 30. Nxe5 Qe1+
31. Kh2 Qxf2 32. Bxg5 Qf5) 30. Nxe5 $11 {[%emt 0:00:08] [#] And now Ng4 would
win.} Qe6 {[%emt 0:00:45]} (30... Qxc2 {gets mated.} 31. Qf6) (30... Bxc2 $2
31. Ng4 g5 32. Qe7 $18) 31. Qd4 {[%emt 0:00:34]} f6 {[%emt 0:01:04]} (31...
Bxc2 $2 32. Nd7 f6 33. Nxf6+ Kf7 34. Nxh7 Qe1+ 35. Kh2 $18) 32. Ng4 $40 {
[%emt 0:01:33] White is up to no good.} Kf7 {[%emt 0:00:02] [#]} (32... Bxc2 $2
33. Nxf6+ Kf7 34. Nxh7 $18) 33. Nxf6 $1 {[%emt 0:00:26] Deflection} Qxf6 {
[%emt 0:00:41]} 34. Qd5+ {[%emt 0:00:10]} Ke8 {[%emt 0:02:00] Threatens to win
with ...Bc6.} 35. Qg8+ {[%emt 0:00:04] Skewer, Double Attack} Kd7 $1 {[%emt 0:
00:08]} 36. Qxa8 {[%emt 0:00:04]} Bc6 {[%emt 0:00:00]} (36... Qa1+ $11 37. Kh2
Qe5+ 38. g3 Bc6) 37. Qg8 $16 {[%emt 0:05:40][%csl Yc4,Yh7]} Qa1+ {[%emt 0:00:
05]} 38. Kh2 {[%emt 0:00:04] White wants to mate with Qf7+.} Qe5+ {[%emt 0:00:
02]} 39. Kg1 {[%emt 0:00:04] Weighted Error Value: White=0.12 (very precise) /
Black=0.12 (very precise)} ({Better is} 39. f4 $16 Qe7 40. Qxc4 (40. Bg5 Qe4
$11)) 1/2-1/2